bitfinex-derivatives/quotes_BTCF0:USTF0_20250330
["timestamp","ask_amount","ask_price","bid_price","bid_amount"]
[1743373858433,0.00605051,82305.0,82304.0,0.5410826]
[1743373858633,0.00605051,82305.0,82304.0,0.5420826]
[1743373858634,0.00505051,82305.0,82304.0,0.5420826]
[1743373859128,0.00505051,82305.0,82304.0,0.5430826]
[1743373861632,0.00545051,82324.0,82304.0,0.49822173]
[1743373861939,0.01404124,82322.0,82318.0,0.4823019]
[1743373862136,0.00505051,82322.0,82318.0,0.4840619]
[1743373862730,0.12654701,82322.0,82318.0,0.4840619]
[1743373862931,0.2004,82328.0,82320.0,0.0607495]
[1743373863242,0.0004,82340.0,82339.0,0.1214709]
[1743373863440,0.3229695,82340.0,82339.0,0.00176]
[1743373863734,0.3229695,82340.0,82321.0,0.3608]
[1743373863735,0.121496,82322.0,82321.0,0.3608]
[1743373863939,0.267576,82322.0,82321.0,0.00176]
[1743373864127,0.267576,82322.0,82304.0,0.002]
[1743373864128,0.1215078,82314.0,82313.0,0.00018222]
[1743373864326,0.0607499,82320.0,82313.0,0.27029682]
[1743373864528,0.1215073,82316.0,82315.0,0.1215019]
[1743373864841,0.1215073,82316.0,82315.0,0.5684331]
[1743373865343,0.1215073,82316.0,82315.0,0.5521908]
[1743373866229,0.1215073,82316.0,82315.0,0.4306889]
[1743373866426,0.3929911,82316.0,82315.0,0.0172889]
[1743373866632,0.3929911,82316.0,82307.0,0.36383313]
[1743373866633,0.1215167,82308.0,82307.0,0.36383313]
[1743373866832,0.1215167,82308.0,82289.0,0.3608]
[1743373866833,0.1215241,82303.0,82289.0,0.3608]
[1743373867027,0.28129742,82303.0,82302.0,0.4345408]
[1743373867339,0.55278122,82303.0,82302.0,0.4345408]
[1743373868137,0.40278122,82303.0,82302.0,0.4345408]
[1743373868332,0.3903679,82303.0,82302.0,0.4345408]
[1743373868539,0.1228441,82303.0,82302.0,0.4345408]
[1743373869245,0.24434709,82303.0,82302.0,0.4345408]
[1743373869942,0.45344709,82303.0,82302.0,0.4345408]
[1743373870144,0.45344709,82303.0,82302.0,0.00124]
[1743373870145,0.64634709,82303.0,82302.0,0.00124]
[1743373870341,0.121527,82301.0,82300.0,0.2087]
[1743373870640,0.122167,82301.0,82300.0,0.2087]
[1743373870835,0.122167,82301.0,82300.0,0.21002]
[1743373871143,0.24366999,82301.0,82300.0,0.57082]
[1743373871647,0.13143288,82301.0,82300.0,0.57082]
[1743373872435,0.25293882,82301.0,82300.0,0.36212]
[1743373873244,0.25293882,82301.0,82300.0,0.76702]
[1743373873443,0.25293882,82301.0,82300.0,0.8885485]
[1743373873652,0.13143288,82301.0,82300.0,0.8885485]
[1743373873937,0.00064,82301.0,82300.0,0.8885485]
[1743373874343,0.122167,82301.0,82300.0,0.8885485]
[1743373875144,0.13117246,82301.0,82300.0,0.76702]
[1743373875542,0.2526784,82301.0,82300.0,0.55562]
[1743373875748,0.122167,82301.0,82300.0,0.6771485]
[1743373876048,0.121527,82301.0,82300.0,0.8762485]
[1743373876849,0.24303294,82301.0,82300.0,0.55562]
[1743373877050,0.66187294,82301.0,82300.0,0.36212]
[1743373877347,0.87627294,82301.0,82300.0,0.36212]
[1743373877933,0.87627294,82301.0,82300.0,0.00132]
[1743373878138,0.1215285,82300.0,82299.0,0.00048603]
[1743373878336,0.4829685,82300.0,82299.0,0.00048603]
[1743373878642,0.8917685,82300.0,82299.0,0.00048603]
[1743373878946,1.01327444,82300.0,82299.0,0.00048603]
[1743373879339,0.0607671,82297.0,82290.0,0.29112508]
[1743373879538,0.4823418,82291.0,82290.0,0.29244508]
[1743373879836,0.62954181,82291.0,82290.0,0.29236508]
[1743373880041,0.1215521,82284.0,82278.0,0.29112508]
[1743373880343,0.1221921,82284.0,82283.0,0.00180612]
[1743373880547,0.00064,82284.0,82283.0,0.12335972]
[1743373880741,0.00018222,82292.0,82291.0,0.1215418]
[1743373880948,0.00154222,82292.0,82291.0,0.4837018]
[1743373881242,0.00154222,82292.0,82291.0,0.8879018]
[1743373881637,0.12308252,82292.0,82291.0,0.8879018]
[1743373881838,0.00154222,82292.0,82291.0,0.8879018]
[1743373882144,0.1215233,82304.0,82301.0,0.121527]
[1743373882341,0.1215233,82304.0,82303.0,0.1215241]
[1743373882735,0.1215233,82304.0,82303.0,0.5372641]
[1743373883237,0.00018182,82312.0,82311.0,0.1215123]
[1743373883435,0.00018182,82312.0,82311.0,0.1232323]
[1743373883939,0.1218931,82324.0,82323.0,0.1214946]
[1743373884241,0.1218931,82324.0,82323.0,0.1231746]
[1743373884441,0.0004,82324.0,82323.0,0.1231746]
[1743373884637,0.0004,82324.0,82323.0,0.13848941]
[1743373886249,0.0004,82324.0,82323.0,0.49928941]
[1743373887442,0.1218931,82324.0,82323.0,0.37779481]
[1743373888041,0.1218931,82324.0,82323.0,0.49928941]
[1743373888838,0.1218931,82324.0,82323.0,0.01699481]
[1743373889237,0.45106509,82324.0,82323.0,0.00168]
[1743373889445,0.1215049,82316.0,82315.0,0.00018222]
[1743373889640,0.13406547,82316.0,82315.0,0.00018222]
[1743373890047,0.67453746,82316.0,82315.0,0.00018222]
[1743373890240,0.66261689,82316.0,82315.0,0.00018222]
[1743373891353,0.45491689,82316.0,82315.0,0.00018222]
[1743373891946,0.24361689,82316.0,82315.0,0.00134222]
[1743373892354,0.24361689,82316.0,82315.0,0.12284862]
[1743373893158,0.24361689,82316.0,82315.0,0.00134222]
[1743373893659,0.45381689,82316.0,82315.0,0.00018222]
[1743373894057,0.45381689,82316.0,82315.0,0.00130222]
[1743373894257,0.1215196,82306.0,82305.0,0.3608]
[1743373894556,0.1215359,82295.0,82285.0,0.1215496]
[1743373894759,0.6288559,82295.0,82285.0,0.1215496]
[1743373894960,0.6288559,82295.0,82289.0,0.29112508]
[1743373895151,0.6288559,82295.0,82294.0,0.002943]
[1743373895353,0.1215433,82290.0,82289.0,0.29112508]
[1743373895559,0.1221833,82290.0,82289.0,0.29224508]
[1743373895858,0.1221833,82290.0,82289.0,0.29112508]
[1743373896159,0.2436981,82290.0,82289.0,0.29224508]
[1743373896355,0.2436981,82290.0,82289.0,0.29112508]
[1743373896950,0.2436981,82290.0,82289.0,0.29312508]
[1743373897557,0.2436981,82290.0,82289.0,0.29112508]
[1743373897755,0.2436981,82290.0,82289.0,0.29212508]
[1743373898247,0.2436981,82290.0,82289.0,0.002]
[1743373899555,0.1215477,82287.0,82283.0,0.00048612]
[1743373899774,0.4823521,82284.0,82283.0,0.00048612]
[1743373899960,0.6287921,82284.0,82283.0,0.00048612]
[1743373900264,0.75031428,82284.0,82283.0,0.00048612]
[1743373900465,0.1823583,82272.0,82269.0,0.1215741]
[1743373900661,0.1823627,82270.0,82269.0,0.1834798]
[1743373900860,0.1800027,82270.0,82269.0,0.1834798]
[1743373901165,0.1770027,82270.0,82269.0,0.0619069]
[1743373901370,0.1770027,82270.0,82269.0,0.00112]
[1743373901560,0.1770027,82270.0,82269.0,0.00712]
[1743373901865,0.00064,82270.0,82269.0,0.1286943]
[1743373902056,0.00018222,82279.0,82278.0,0.121561]
[1743373902261,0.00018222,82279.0,82278.0,0.483681]
[1743373902262,0.00090222,82279.0,82278.0,0.483681]
[1743373902564,0.12174172,82279.0,82278.0,0.483681]
[1743373903158,0.00916519,82293.0,82291.0,0.1215418]
[1743373903364,0.00140001,82289.0,82288.0,0.1215462]
[1743373903668,0.1215446,82290.0,82289.0,0.0607723]
[1743373903855,0.12294461,82290.0,82289.0,0.0607723]
[1743373904060,0.12294461,82290.0,82289.0,0.0621323]
[1743373904751,0.12294461,82290.0,82289.0,0.07747226]
[1743373905170,0.12294461,82290.0,82289.0,0.07847226]
[1743373905568,0.12294461,82290.0,82289.0,0.07947226]
[1743373907466,0.00018222,82298.0,82296.0,0.1215329]
[1743373907773,0.18247972,82298.0,82297.0,0.5676]
[1743373907958,0.18247972,82298.0,82297.0,0.58469996]
[1743373908368,0.18247972,82298.0,82297.0,0.56936]
[1743373908564,0.18247972,82298.0,82297.0,0.6908929]
[1743373908764,0.18347972,82298.0,82297.0,0.6908929]
[1743373909858,0.18447972,82298.0,82297.0,0.6908929]
[1743373910263,0.18447972,82298.0,82297.0,0.56936]
[1743373910862,0.18447972,82298.0,82297.0,0.6908929]
[1743373911568,0.18347972,82298.0,82297.0,0.6908929]
[1743373912372,0.18447972,82298.0,82297.0,0.6908929]
[1743373913269,0.18447972,82298.0,82297.0,0.56936]
[1743373914070,0.18447972,82298.0,82297.0,0.20856]
[1743373914271,0.18447972,82298.0,82297.0,0.3300929]
[1743373914460,0.18447972,82298.0,82297.0,0.20856]
[1743373914668,0.18447972,82298.0,82297.0,0.3300929]
[1743373914868,0.18447972,82298.0,82297.0,0.20856]
[1743373915264,0.30599009,82298.0,82297.0,0.20856]
[1743373915476,0.1215462,82288.0,82277.0,0.3608]
[1743373915672,0.1215551,82282.0,82281.0,0.12173882]
[1743373915876,0.1215551,82282.0,82281.0,0.12293882]
[1743373916066,0.12275511,82282.0,82281.0,0.12293882]
[1743373916781,0.12275511,82282.0,82281.0,0.32703882]
[1743373916981,0.24428911,82282.0,82281.0,0.22400708]
[1743373917568,0.45578911,82282.0,82281.0,0.22400708]
[1743373917774,0.45578911,82282.0,82281.0,0.21128222]
[1743373919879,0.24428911,82282.0,82281.0,0.21128222]
[1743373920269,0.24428911,82282.0,82281.0,0.22798855]
[1743373920669,0.24428911,82282.0,82281.0,0.34954515]
[1743373920870,0.00120001,82282.0,82281.0,0.71034515]
[1743373921069,0.2009,82307.0,82292.0,0.1215403]
[1743373921269,0.2009,82307.0,82290.0,0.060771]
[1743373921270,0.00164,82292.0,82291.0,0.1215418]
[1743373921469,0.121541,82292.0,82291.0,0.8523836]
[1743373921670,0.121535,82296.0,82294.0,0.060768]
[1743373921880,0.121535,82296.0,82295.0,0.5335344]
[1743373922070,0.121535,82296.0,82295.0,0.55068073]
[1743373922291,0.12309501,82296.0,82295.0,0.55068073]
[1743373922472,0.0004,82308.0,82307.0,0.1215182]
[1743373922670,0.1219167,82308.0,82307.0,0.3608]
[1743373922979,0.25273011,82308.0,82307.0,0.20106]
[1743373923172,0.25437011,82308.0,82307.0,0.21656633]
[1743373923368,0.25437011,82308.0,82307.0,0.21500633]
[1743373923773,0.64157011,82308.0,82307.0,0.01550633]
[1743373923975,0.1215285,82300.0,82299.0,0.00018222]
[1743373924479,0.1232085,82300.0,82299.0,0.00186222]
[1743373924677,0.24471592,82300.0,82299.0,0.00018222]
[1743373924870,0.63001592,82300.0,82299.0,0.00018222]
[1743373925075,0.77573592,82300.0,82299.0,0.00018222]
[1743373925471,0.77673592,82300.0,82299.0,0.00018222]
[1743373926079,0.77673592,82300.0,82299.0,0.00174222]
[1743373926682,0.77873592,82300.0,82299.0,0.00174222]
[1743373927373,0.44041592,82300.0,82299.0,0.00174222]
[1743373927579,0.12618742,82300.0,82299.0,0.00174222]
[1743373927779,0.00468,82300.0,82299.0,0.51787222]
[1743373927979,0.003,82300.0,82299.0,0.51787222]
[1743373928183,0.003,82300.0,82299.0,0.53322624]
[1743373929799,0.1219167,82308.0,82307.0,0.1215182]
[1743373929982,0.12347671,82308.0,82307.0,0.4838782]
[1743373930184,0.0004,82308.0,82307.0,0.49923222]
[1743373930380,0.0004,82308.0,82307.0,0.91743222]
[1743373930577,0.1219167,82308.0,82307.0,0.91743222]
[1743373930785,0.1219167,82308.0,82307.0,0.94279879]
[1743373931285,0.1249167,82308.0,82307.0,0.94279879]
[1743373931685,0.24705231,82308.0,82307.0,0.58441402]
[1743373931890,0.39269231,82308.0,82307.0,0.01691402]
[1743373932188,0.39269231,82308.0,82307.0,0.01535402]
[1743373932387,0.59039231,82308.0,82307.0,0.01535402]
[1743373932589,0.121527,82301.0,82300.0,0.2099]
[1743373932888,0.121527,82301.0,82300.0,0.00164]
[1743373933091,0.12308701,82301.0,82300.0,0.00164]
[1743373933300,0.64078262,82301.0,82300.0,0.00164]
[1743373933896,0.64078262,82301.0,82300.0,0.21154]
[1743373934084,0.64278262,82301.0,82300.0,0.21154]
[1743373934484,0.64478262,82301.0,82300.0,0.21154]
[1743373937992,0.64478262,82301.0,82300.0,0.2099]
[1743373938693,0.24858262,82301.0,82300.0,0.5275285]
[1743373938899,0.24858262,82301.0,82300.0,0.7399685]
[1743373939194,0.24858262,82301.0,82300.0,0.61844]
[1743373940991,0.24858262,82301.0,82300.0,0.7399685]
[1743373941179,0.12708701,82301.0,82300.0,0.7399685]
[1743373941696,0.12708701,82301.0,82300.0,0.61844]
[1743373941897,0.24859295,82301.0,82300.0,0.40764]
[1743373942288,1.02579295,82301.0,82300.0,0.21154]
[1743373942491,1.02579295,82301.0,82300.0,0.2099]
[1743373943503,1.02579295,82301.0,82286.0,0.21819176]
[1743373943504,0.060771,82291.0,82286.0,0.21819176]
[1743373943790,0.1215477,82287.0,82286.0,0.21975176]
[1743373943991,0.12310771,82287.0,82286.0,0.21975176]
[1743373944187,0.24461365,82287.0,82286.0,0.21975176]
[1743373944805,0.24461365,82287.0,82286.0,0.22175176]
[1743373944981,0.24461365,82287.0,82286.0,0.00356]
[1743373945586,0.24461365,82287.0,82286.0,0.00556]
[1743373945987,0.24461365,82287.0,82286.0,0.1271092]
[1743373946187,0.24461365,82287.0,82286.0,0.7413092]
[1743373946592,0.24461365,82287.0,82286.0,0.61776]
[1743373946795,0.24461365,82287.0,82286.0,0.61976]
[1743373947302,0.24461365,82287.0,82286.0,0.7413092]
[1743373947593,0.12310771,82287.0,82286.0,0.7413092]
[1743373948884,0.00156001,82287.0,82286.0,1.1021092]
[1743373949087,0.1215477,82287.0,82286.0,1.2844324]
[1743373949282,0.1215477,82287.0,82286.0,1.1628832]
[1743373949498,0.1232277,82287.0,82286.0,1.1628832]
[1743373949903,0.1232277,82287.0,82286.0,0.98056]
[1743373950084,0.24475431,82287.0,82286.0,0.21676]
[1743373950289,0.24475431,82287.0,82286.0,0.00556]
[1743373950596,0.24475431,82287.0,82286.0,0.004]
[1743373950800,0.63485431,82287.0,82286.0,0.004]
[1743373951000,0.63485431,82287.0,82286.0,0.00564]
[1743373951389,0.63485431,82287.0,82286.0,0.00364]
[1743373951590,0.63585431,82287.0,82286.0,0.00364]
[1743373952102,1.00891177,82287.0,82286.0,0.00364]
[1743373952404,1.00891177,82287.0,82286.0,0.00164]
[1743373952602,1.01091177,82287.0,82286.0,0.00164]
[1743373955086,0.1215595,82279.0,82278.0,0.00018222]
[1743373955288,0.060784,82274.0,82270.0,0.1]
[1743373955492,0.1215758,82268.0,82265.0,0.1869]
[1743373955692,0.1723358,82268.0,82267.0,0.00120622]
[1743373956387,0.29387423,82268.0,82267.0,0.00120622]
[1743373956587,0.70527423,82268.0,82267.0,0.00120622]
[1743373956789,0.70527423,82268.0,82267.0,0.00048622]
[1743373957599,0.1215832,82263.0,82262.0,0.1869]
[1743373957802,0.1215832,82263.0,82259.0,0.00018233]
[1743373957803,0.1215876,82260.0,82259.0,0.00018233]
[1743373958103,0.1216113,82244.0,82243.0,0.18671767]
[1743373958301,1.0404313,82244.0,82243.0,0.18743767]
[1743373958993,1.42360145,82244.0,82243.0,0.38503767]
[1743373959193,1.36596145,82244.0,82243.0,0.38503767]
[1743373959397,1.36996145,82244.0,82243.0,0.38503767]
[1743373959596,1.36996145,82244.0,82243.0,0.18743767]
[1743373959898,1.36996145,82244.0,82243.0,0.00072]
[1743373960203,0.1216231,82236.0,82235.0,0.00066874]
[1743373960397,0.1224231,82236.0,82235.0,0.00138874]
[1743373961013,0.44402508,82236.0,82235.0,0.00138874]
[1743373961306,0.64722508,82236.0,82235.0,0.00138874]
[1743373961508,0.64922508,82236.0,82235.0,0.00138874]
[1743373962009,0.65122508,82236.0,82235.0,0.20848874]
[1743373962695,0.65122508,82236.0,82235.0,0.00138874]
[1743373963099,1.06292508,82236.0,82235.0,0.00138874]
[1743373963305,0.1216438,82222.0,82221.0,0.1933]
[1743373963505,0.2682038,82222.0,82221.0,0.00064]
[1743373963705,0.1216468,82220.0,82207.0,0.1868]
[1743373963900,0.121663,82209.0,82208.0,0.1933]
[1743373964096,0.12278301,82209.0,82208.0,0.3156845]
[1743373964504,0.12078301,82209.0,82208.0,0.3156845]
[1743373964698,0.12160198,82209.0,82208.0,0.3156845]
[1743373964894,0.121663,82209.0,82208.0,0.19402]
[1743373965402,0.121663,82209.0,82208.0,0.19602]
[1743373966197,0.121663,82209.0,82208.0,0.3176845]
[1743373966397,0.121663,82209.0,82208.0,0.5176845]
[1743373966810,0.121663,82209.0,82208.0,0.39602]
[1743373967713,0.24330492,82209.0,82208.0,0.39602]
[1743373967897,0.24442493,82209.0,82208.0,0.39602]
[1743373972806,0.44492493,82209.0,82208.0,0.39602]
[1743373973505,0.64382493,82209.0,82208.0,0.39402]
[1743373973709,0.64482493,82209.0,82208.0,0.39402]
[1743373977609,0.24642493,82209.0,82208.0,0.39402]
[1743373981605,0.1216572,82213.0,82210.0,0.0608307]
[1743373981811,0.13136521,82213.0,82212.0,0.3608]
[1743373982010,0.13136521,82213.0,82212.0,0.00076]
[1743373982333,0.13136521,82213.0,82212.0,0.39056]
[1743373982503,0.25300713,82213.0,82212.0,0.39056]
[1743373983108,0.25500713,82213.0,82212.0,0.39056]
[1743373983309,0.25600713,82213.0,82212.0,0.39056]
[1743373983818,0.64960713,82213.0,82212.0,0.39056]
[1743373984117,0.64860713,82213.0,82212.0,0.39056]
[1743373984412,0.65060713,82213.0,82212.0,0.20126]
[1743373985006,0.65060713,82213.0,82212.0,0.00076]
[1743373985205,0.1216689,82205.0,82204.0,0.1863]
[1743373985511,0.1216689,82205.0,82204.0,0.38884]
[1743373985512,0.2680289,82205.0,82204.0,0.38884]
[1743373985916,0.38967674,82205.0,82204.0,0.38884]
[1743373986808,0.58567674,82205.0,82204.0,0.38884]
[1743373988218,0.59785359,82205.0,82204.0,0.38884]
[1743373988414,0.58567674,82205.0,82204.0,0.38884]
[1743373988614,0.38967674,82205.0,82204.0,0.38884]
[1743373988816,0.24415674,82205.0,82204.0,0.38884]
[1743373989015,0.38963674,82205.0,82204.0,0.38884]
[1743373992614,0.24415674,82205.0,82204.0,0.38884]
[1743373993012,0.24415674,82205.0,82204.0,0.5105104]
[1743373993013,0.12248784,82205.0,82204.0,0.5105104]
[1743373993231,0.0608199,82225.0,82204.0,0.5105104]
[1743373993232,0.06973691,82213.0,82212.0,0.1216586]
[1743373993409,0.0615089,82213.0,82212.0,0.4831386]
[1743373993613,0.0608289,82213.0,82212.0,0.4831386]
[1743373993914,0.0608289,82213.0,82212.0,0.8759386]
[1743373994117,0.00900026,82213.0,82212.0,0.8759386]
[1743373994320,0.060825,82218.0,82214.0,0.1824803]
[1743373994520,0.1216527,82216.0,82215.0,0.3928]
[1743373994715,0.2439687,82216.0,82215.0,0.5151327]
[1743373994912,0.1223327,82216.0,82215.0,0.5151327]
[1743373995212,0.1223327,82216.0,82215.0,0.39348]
[1743373995922,0.1233327,82216.0,82215.0,0.39348]
[1743373996322,0.00992041,82216.0,82215.0,0.5151341]
[1743373996519,0.01124041,82216.0,82215.0,0.5151341]
[1743373996916,0.01124041,82216.0,82215.0,1.0154517]
[1743373997622,0.01224041,82216.0,82215.0,1.0154517]
[1743373997832,0.0004,82244.0,82236.0,0.1216211]
[1743373998012,0.00108,82244.0,82243.0,0.1216127]
[1743373998219,0.0004,82244.0,82243.0,0.1222927]
[1743373998917,0.0004,82244.0,82243.0,0.5166927]
[1743373999221,0.1220113,82244.0,82243.0,0.5166927]
[1743373999417,0.1220113,82244.0,82243.0,0.5176927]
[1743373999622,0.00940126,82244.0,82243.0,0.5176927]
[1743373999822,0.00940126,82244.0,82243.0,0.5166927]
[1743374000121,0.13101256,82244.0,82243.0,0.5166927]
[1743374000311,0.25336271,82244.0,82243.0,0.39508]
[1743374000514,0.39872271,82244.0,82243.0,0.39708]
[1743374001017,0.25328271,82244.0,82243.0,0.39708]
[1743374001216,0.79038271,82244.0,82243.0,0.00268]
[1743374001417,0.1216172,82240.0,82239.0,0.36394796]
[1743374001619,0.1222972,82240.0,82239.0,0.36470796]
[1743374001926,0.00068,82240.0,82239.0,0.36470796]
[1743374002129,0.24320735,82240.0,82239.0,0.48632656]
[1743374002722,0.24388735,82240.0,82239.0,0.48632656]
[1743374002923,0.24320735,82240.0,82239.0,0.48632656]
[1743374003423,0.12459015,82240.0,82239.0,0.48632656]
[1743374003625,0.00018245,82252.0,82251.0,0.1216009]
[1743374003929,0.12178185,82252.0,82251.0,0.4830809]
[1743374004222,0.00086245,82252.0,82251.0,0.4830809]
[1743374004425,0.00018245,82252.0,82251.0,0.4830809]
[1743374004631,0.12178185,82252.0,82251.0,0.4830809]
[1743374004818,0.12446185,82252.0,82251.0,0.4830809]
[1743374006221,0.12646185,82252.0,82251.0,0.4830809]
[1743374006726,0.12446185,82252.0,82251.0,0.4830809]
[1743374006926,0.13441727,82252.0,82251.0,0.4830809]
[1743374007531,0.13373727,82252.0,82251.0,0.4830809]
[1743374007730,0.01213787,82252.0,82251.0,0.4830809]
[1743374007930,0.0004,82260.0,82259.0,0.1215891]
[1743374008228,0.01012669,82260.0,82259.0,0.4830691]
[1743374008429,0.0004,82260.0,82259.0,0.4830691]
[1743374009235,0.00950934,82268.0,82267.0,0.1215773]
[1743374009422,0.00086245,82268.0,82267.0,0.4830573]
[1743374009731,0.14532,82285.0,82275.0,0.1215654]
[1743374010029,0.060775,82286.0,82284.0,0.1215521]
[1743374010225,0.061775,82286.0,82285.0,0.2052]
[1743374010533,0.1833242,82286.0,82285.0,0.3276707]
[1743374010727,0.18332968,82286.0,82285.0,0.3276707]
[1743374011630,0.18332968,82286.0,82285.0,0.3286707]
[1743374011826,0.13167816,82286.0,82285.0,0.3286707]
[1743374012034,0.01012348,82286.0,82285.0,0.3286707]
[1743374012217,0.00912348,82286.0,82285.0,0.3286707]
[1743374012422,0.121547,82288.0,82287.0,0.1215477]
[1743374012732,0.122467,82288.0,82287.0,0.1224677]
[1743374013234,0.00092,82288.0,82287.0,0.1224677]
[1743374013440,0.1219408,82292.0,82291.0,0.1215418]
[1743374013736,0.12290081,82292.0,82291.0,0.4833018]
[1743374014126,0.13193579,82292.0,82291.0,0.4833018]
[1743374014325,0.13097578,82292.0,82291.0,0.4833018]
[1743374014531,0.13197578,82292.0,82291.0,0.4833018]
[1743374016232,0.13097578,82292.0,82291.0,0.4833018]
[1743374017232,0.13193579,82292.0,82291.0,0.4833018]
[1743374020228,0.13293579,82292.0,82291.0,0.4833018]
[1743374021437,0.13293579,82292.0,82291.0,0.6811018]
[1743374022038,0.13293579,82292.0,82291.0,0.55956]
[1743374022237,0.39961502,82292.0,82291.0,0.00096]
[1743374022540,0.121561,82278.0,82268.0,0.3119745]
[1743374022731,0.121561,82278.0,82272.0,0.1978]
[1743374022933,0.122201,82278.0,82273.0,0.2059]
[1743374023128,0.122201,82278.0,82277.0,0.00082233]
[1743374023346,0.64012023,82278.0,82277.0,0.00082233]
[1743374023546,0.64012023,82278.0,82277.0,0.20672233]
[1743374023745,0.64012023,82278.0,82277.0,0.00082233]
[1743374024136,0.1215787,82266.0,82265.0,0.21796313]
[1743374024340,0.1224187,82266.0,82265.0,0.21860313]
[1743374024940,0.64185861,82266.0,82265.0,0.21860313]
[1743374025335,0.52027991,82266.0,82265.0,0.21860313]
[1743374025536,0.64185861,82266.0,82265.0,0.34018333]
[1743374025949,0.64185861,82266.0,82265.0,0.73508333]
[1743374026932,0.64385861,82266.0,82265.0,0.5171202]
[1743374027447,0.45395861,82266.0,82265.0,0.5171202]
[1743374027749,0.24795861,82266.0,82265.0,0.5171202]
[1743374027949,0.24795861,82266.0,82265.0,0.7197202]
[1743374028251,0.24595861,82266.0,82265.0,0.7197202]
[1743374029040,0.00284,82266.0,82265.0,0.7197202]
[1743374029240,0.002,82266.0,82265.0,0.7197202]
[1743374029546,0.1235787,82266.0,82265.0,0.7197202]
[1743374029746,0.1225787,82266.0,82265.0,0.7197202]
[1743374030441,0.1215787,82266.0,82265.0,0.7207202]
[1743374030743,0.1215787,82266.0,82265.0,0.7217202]
[1743374030944,0.1215787,82266.0,82265.0,0.7207202]
[1743374031342,0.3608,82290.0,82267.0,0.0607885]
[1743374031541,0.0607752,82286.0,82285.0,0.1823202]
[1743374031743,0.0615752,82286.0,82285.0,0.1829602]
[1743374032249,0.0615752,82286.0,82285.0,0.061414]
[1743374032750,0.0655752,82286.0,82285.0,0.061414]
[1743374032942,0.0655752,82286.0,82285.0,0.00064]
[1743374033642,0.0655752,82286.0,82285.0,0.1221907]
[1743374033944,0.0625752,82286.0,82285.0,0.1221907]
[1743374034244,0.0635752,82286.0,82285.0,0.1221907]
[1743374034449,0.0625752,82286.0,82285.0,0.1221907]
[1743374034644,0.0635752,82286.0,82285.0,0.1221907]
[1743374035244,0.0635752,82286.0,82285.0,0.00064]
[1743374035448,0.33018329,82286.0,82285.0,0.00064]
[1743374035850,0.32918329,82286.0,82285.0,0.00064]
[1743374036050,0.33018329,82286.0,82285.0,0.00064]
[1743374036654,0.32918329,82286.0,82285.0,0.00064]
[1743374036856,0.33218329,82286.0,82285.0,0.00064]
[1743374037058,0.33218329,82286.0,82285.0,0.19674]
[1743374037258,0.33218329,82286.0,82285.0,0.5051907]
[1743374037464,0.33018329,82286.0,82285.0,0.5051907]
[1743374037765,0.2106552,82286.0,82285.0,0.5051907]
[1743374038169,0.0655752,82286.0,82285.0,0.5051907]
[1743374039069,0.0635752,82286.0,82285.0,0.5051907]
[1743374039258,0.0645752,82286.0,82285.0,0.5051907]
[1743374039562,0.18610329,82286.0,82285.0,0.00064]
[1743374039762,0.18510329,82286.0,82285.0,0.00064]
[1743374040265,0.18510329,82286.0,82285.0,0.39564]
[1743374040867,0.18610329,82286.0,82285.0,0.39564]
[1743374042371,0.18410329,82286.0,82285.0,0.39564]
[1743374042577,0.18610329,82286.0,82285.0,0.39564]
[1743374042876,0.18510329,82286.0,82285.0,0.39564]
[1743374043178,0.18710329,82286.0,82285.0,0.39564]
[1743374043378,0.18710329,82286.0,82285.0,0.00064]
[1743374043676,0.54790329,82286.0,82285.0,0.00064]
[1743374043874,0.54590329,82286.0,82285.0,0.00064]
[1743374044076,0.54790329,82286.0,82285.0,0.21868929]
[1743374045674,0.18710329,82286.0,82285.0,0.21868929]
[1743374046174,0.18810329,82286.0,82285.0,0.21868929]
[1743374046376,0.18610329,82286.0,82285.0,0.21868929]
[1743374046680,0.18510329,82286.0,82285.0,0.21868929]
[1743374046879,0.18810329,82286.0,82285.0,0.21868929]
[1743374047183,0.18610329,82286.0,82285.0,0.21868929]
[1743374047369,0.18810329,82286.0,82285.0,0.21868929]
[1743374047770,0.33310329,82286.0,82285.0,0.21868929]
[1743374048067,0.33310329,82286.0,82285.0,0.00064]
[1743374048269,0.33010329,82286.0,82285.0,0.00064]
[1743374048478,0.33310329,82286.0,82285.0,0.00064]
[1743374048977,0.33210329,82286.0,82285.0,0.00064]
[1743374049569,0.32810329,82286.0,82285.0,0.00064]
[1743374049773,0.18810329,82286.0,82285.0,0.5167907]
[1743374049972,0.0058,82286.0,82285.0,0.5167907]
[1743374050174,0.002,82286.0,82285.0,0.5167907]
[1743374050882,0.0611472,82324.0,82304.0,0.1215211]
[1743374050883,0.1215225,82305.0,82304.0,0.1215211]
[1743374051179,0.1215241,82303.0,82302.0,0.3608]
[1743374051381,0.13050584,82305.0,82302.0,0.5430878]
[1743374051581,0.00897775,82305.0,82304.0,0.1215226]
[1743374051780,0.00897775,82305.0,82304.0,0.1340945]
[1743374052081,0.1215185,82307.0,82306.0,0.1215196]
[1743374052285,0.1215185,82307.0,82306.0,0.1221596]
[1743374052985,0.13046615,82307.0,82306.0,0.00064]
[1743374053173,0.64496323,82307.0,82306.0,0.00064]
[1743374053376,0.64896323,82307.0,82306.0,0.00064]
[1743374053779,0.65096323,82307.0,82306.0,0.00064]
[1743374055073,0.1215329,82297.0,82296.0,0.36098233]
[1743374055279,0.1215329,82297.0,82296.0,0.36166233]
[1743374055478,0.1223329,82297.0,82296.0,0.36166233]
[1743374056180,0.3236329,82297.0,82296.0,0.36166233]
[1743374056384,0.3246329,82297.0,82296.0,0.36166233]
[1743374056573,0.3266329,82297.0,82296.0,0.36166233]
[1743374057070,0.44814475,82297.0,82296.0,0.00086233]
[1743374057273,0.59302475,82297.0,82296.0,0.00086233]
[1743374058181,0.59202475,82297.0,82296.0,0.00018233]
[1743374058372,0.59302475,82297.0,82296.0,0.00018233]
[1743374058982,0.59202475,82297.0,82296.0,0.00018233]
[1743374059186,0.59302475,82297.0,82296.0,0.00018233]
[1743374059381,0.59402475,82297.0,82296.0,0.00018233]
[1743374060979,0.59102475,82297.0,82296.0,0.00018233]
[1743374061179,0.59402475,82297.0,82296.0,0.00018233]
[1743374061493,0.59302475,82297.0,82296.0,0.00018233]
[1743374061682,0.59402475,82297.0,82296.0,0.00018233]
[1743374061879,0.1215477,82287.0,82286.0,0.1867]
[1743374062185,0.1223477,82287.0,82286.0,0.1875]
[1743374062684,0.24385955,82287.0,82286.0,0.3090492]
[1743374062890,0.1223477,82287.0,82286.0,0.1875]
[1743374063083,0.1253477,82287.0,82286.0,0.1875]
[1743374064087,0.24687431,82287.0,82286.0,0.0008]
[1743374064389,0.1215566,82281.0,82280.0,0.1915]
[1743374064582,0.1223566,82281.0,82280.0,0.19214]